bitfinex/quotes_ETHUSD_20241030
["timestamp","ask_amount","ask_price","bid_price","bid_amount"]
[1730246401200,0.8278,2638.1,2637.5,0.7501]
[1730246401396,0.8278,2638.1,2637.9,0.28297865]
[1730246401898,1.65571157,2638.2,2637.9,0.28297865]
[1730246402095,0.7767,2638.3,2637.9,0.28297865]
[1730246402300,1.65571157,2638.1,2638.0,0.28297575]
[1730246402985,0.7767,2638.3,2638.0,0.28297575]
[1730246403186,1.65571157,2638.1,2637.9,0.2921092]
[1730246403425,1.65571157,2638.1,2638.0,0.28303154]
[1730246404125,1.65571157,2638.1,2637.9,1.0489092]
[1730246404424,1.65571157,2638.1,2638.0,0.28303532]
[1730246404627,1.65261011,2638.1,2638.0,0.28303532]
[1730246404814,1.65571157,2638.1,2637.9,0.2921092]
[1730246404986,1.65571157,2638.1,2638.0,0.28307357]
[1730246405825,1.65571157,2638.3,2638.0,1.03987357]
[1730246406028,1.65571157,2638.3,2638.0,0.7568]
[1730246408107,1.65571157,2638.3,2637.9,0.2921092]
[1730246408323,1.65571157,2638.3,2638.0,0.28309559]
[1730246408517,1.65571157,2638.3,2637.9,0.2921092]
[1730246408791,1.65571157,2638.3,2638.0,0.28310544]
[1730246408998,1.65571157,2638.3,2637.9,0.2921092]
[1730246409195,1.65571157,2638.3,2638.0,0.28310895]
[1730246409396,1.65571157,2638.3,2638.1,0.28310895]
[1730246409636,1.65571157,2638.2,2637.9,0.2921092]
[1730246409928,1.65571157,2638.2,2638.0,0.28310895]
[1730246410135,1.65571157,2638.2,2637.9,0.2921092]
[1730246410302,1.65571157,2638.2,2638.0,0.28310226]
[1730246410488,1.65571157,2638.2,2638.1,0.28307995]
[1730246411313,1.65571157,2638.2,2637.9,0.00913055]
[1730246411617,1.65571157,2638.2,2638.0,0.28308266]
[1730246411816,1.65571157,2638.2,2638.1,0.28308266]
[1730246412402,1.65571157,2638.4,2638.1,0.28308266]
[1730246412604,1.65571157,2638.4,2638.2,0.28308266]
[1730246412836,1.65571157,2638.4,2638.1,0.7568]
[1730246413039,0.7767,2639.0,2638.3,0.00913055]
[1730246413333,1.65571157,2638.7,2638.4,1.03983523]
[1730246413540,1.65571157,2638.7,2638.5,0.29216578]
[1730246413734,1.65571157,2638.7,2638.5,0.00913055]
[1730246415057,2.46271157,2638.7,2638.5,0.00913055]
[1730246416412,1.65571157,2638.7,2638.5,0.00913055]
[1730246419815,0.59285876,2639.4,2638.6,0.8096]
[1730246420016,1.65571157,2638.9,2638.6,0.8096]
[1730246421064,2.24857033,2639.4,2639.1,0.8096]
[1730246421263,1.65571157,2639.4,2639.1,0.8096]
[1730246423424,1.65571157,2639.4,2639.2,0.00913055]
[1730246424551,0.807,2639.7,2639.2,0.00913055]
[1730246424760,1.65571157,2639.5,2639.2,0.00913055]
[1730246426024,1.65571157,2639.5,2639.2,0.55913055]
[1730246426227,1.65571157,2639.7,2639.2,1.36873055]
[1730246427091,3.59265628,2640.3,2639.2,0.00913055]
[1730246427092,1.65571157,2639.4,2639.2,0.00913055]
[1730246445005,0.8058,2639.2,2638.8,0.00913055]
[1730246445309,3.78981,2638.7,2638.2,0.79673055]
[1730246445612,1.65571157,2638.3,2638.2,0.00913055]
[1730246446592,1.65571157,2638.3,2637.9,0.00913055]
[1730246446798,1.65571157,2638.0,2637.7,0.00913055]
[1730246446993,1.65571157,2637.8,2637.7,0.00913055]
[1730246447183,1.65571157,2637.8,2637.7,0.38880361]
[1730246447390,1.65571157,2637.8,2637.7,0.00913055]
[1730246451064,1.65571157,2638.0,2637.7,0.00913055]
[1730246451282,1.65571157,2638.0,2637.9,0.00913055]
[1730246451610,1.65571157,2638.3,2638.0,0.7876]
[1730246452735,1.65571157,2638.3,2638.1,0.00913055]
[1730246456718,2.46151157,2638.3,2637.9,0.00913055]
[1730246456919,1.65571157,2638.0,2637.9,0.00913055]
[1730246457233,1.65571157,2638.0,2637.7,0.00913055]
[1730246457433,1.21752231,2638.3,2637.7,0.00913055]
[1730246457434,1.65571157,2637.8,2637.7,0.00913055]
[1730246466141,1.65571157,2638.0,2637.7,0.00913055]
[1730246473259,1.65571157,2637.8,2637.7,0.00913055]
[1730246477119,1.65571157,2637.8,2637.5,0.00913055]
[1730246477319,1.65571157,2637.8,2637.7,0.00913055]
[1730246482759,1.65571157,2637.8,2637.4,0.8064]
[1730246482760,0.7644,2637.7,2637.3,0.00913055]
[1730246482968,0.7644,2637.7,2637.1,0.8064]
[1730246482969,1.65571157,2637.4,2637.2,0.55]
[1730246483172,1.65571157,2637.4,2637.3,0.00913055]
[1730246483828,1.65571157,2637.4,2637.1,0.81553055]
[1730246484027,1.65571157,2637.2,2637.1,0.00913055]
[1730246484732,0.7644,2637.7,2637.1,0.00913055]
[1730246484961,0.7644,2638.1,2637.3,0.00913055]
[1730246485235,1.65571157,2637.9,2637.7,0.00913055]
[1730246488629,1.65571157,2637.9,2637.8,0.8064]
[1730246490481,1.65571157,2637.9,2637.7,0.00913055]
[1730246490631,1.65571157,2637.9,2637.7,0.55913055]
[1730246491339,1.65468797,2637.9,2637.7,0.55913055]
[1730246501858,0.7644,2638.3,2637.9,0.00913055]
[1730246502068,1.65571157,2638.0,2637.9,0.00913055]
[1730246502297,1.65571157,2638.0,2637.9,0.29172751]
[1730246503393,1.65571157,2638.0,2637.9,0.29172975]
[1730246507180,1.36583106,2638.8,2638.3,0.00913055]
[1730246507382,1.65571157,2638.7,2638.5,0.55913055]
[1730246507582,0.7728,2639.0,2638.5,0.55913055]
[1730246507910,1.65571157,2638.8,2638.7,0.55913055]
[1730246508163,0.1283042,2639.3,2639.1,0.55]
[1730246508285,0.1283042,2639.3,2639.1,0.55913055]
[1730246508807,0.1283042,2639.3,2639.2,0.83182237]
[1730246509108,1.78401577,2639.3,2639.2,0.83182237]
[1730246509286,1.78401577,2639.3,2639.1,0.84060909]
[1730246509997,1.78401577,2639.3,2639.1,0.55913055]
[1730246510187,0.1283042,2639.3,2639.2,1.369]
[1730246514828,0.1283042,2639.3,2639.2,1.80681306]
[1730246515306,0.1283042,2639.3,2639.2,1.369]
[1730246518225,0.1283042,2639.3,2639.2,4.369]
[1730246518440,0.1283042,2639.3,2639.2,1.369]
[1730246518936,0.1283042,2639.3,2639.2,1.44476944]
[1730246519102,0.1283042,2639.3,2639.2,1.369]
[1730246519301,0.1283042,2639.3,2639.2,1.80681306]
[1730246519501,0.1283042,2639.3,2639.2,1.369]
[1730246527133,0.1283042,2639.3,2639.2,1.44476723]
[1730246527337,0.1283042,2639.3,2639.2,1.369]
[1730246527540,0.1283042,2639.3,2639.2,0.55]
[1730246527758,0.1283042,2639.3,2639.2,1.3036]
[1730246528124,0.1283042,2639.3,2639.2,1.37935971]
[1730246528463,0.1283042,2639.3,2639.2,5.56917076]
[1730246528662,0.1283042,2639.3,2639.2,5.6449254]
[1730246529049,3.78595,2641.4,2640.6,0.00913055]
[1730246529257,3.69578956,2641.1,2640.6,0.00913055]
[1730246529564,0.36957896,2641.0,2640.6,0.00913055]
[1730246529771,0.7831,2640.7,2640.6,0.00913055]
[1730246530080,3.69578956,2640.8,2639.9,0.7536]
[1730246530081,0.7831,2640.5,2640.1,0.55]
[1730246530229,3.69578956,2640.2,2639.9,0.00913055]
[1730246530630,3.69578956,2640.2,2639.6,0.7536]
[1730246530631,3.69578956,2640.2,2640.1,0.00913055]
[1730246532628,3.69578956,2640.2,2639.9,0.00913055]
[1730246533274,0.7831,2640.1,2639.9,0.00913055]
[1730246533776,1.23098896,2640.1,2639.6,0.00913055]
[1730246533975,3.69578956,2639.8,2639.6,0.00913055]
[1730246534335,3.69578956,2639.8,2639.5,0.55]
[1730246535285,3.69578956,2639.8,2639.4,0.00913055]
[1730246535450,0.7957,2639.5,2639.4,0.00913055]
[1730246535774,0.7957,2639.5,2639.0,0.00913055]
[1730246535984,3.69578956,2639.3,2639.0,0.00913055]
[1730246536335,3.69578956,2639.1,2638.6,0.00913055]
[1730246536584,3.69578956,2638.7,2638.6,0.00913055]
[1730246536869,3.69578956,2638.7,2638.4,0.00913055]
[1730246536870,0.7957,2638.6,2638.4,0.00913055]
[1730246537068,3.69578956,2638.5,2638.4,0.00913055]
[1730246537269,3.69578956,2638.5,2638.2,0.00913055]
[1730246537476,3.69578956,2638.3,2637.9,0.00913055]
[1730246537691,3.69578956,2638.3,2638.1,0.00913055]
[1730246539676,4.06536852,2638.3,2638.1,0.00913055]
[1730246540180,3.69578956,2638.3,2638.1,0.00913055]
[1730246542236,3.69578956,2638.5,2638.1,0.00913055]
[1730246542555,3.69578956,2638.5,2638.3,0.00913055]
[1730246547320,3.69578956,2638.5,2637.1,0.01]
[1730246547321,0.7957,2638.4,2637.9,0.00913055]
[1730246547518,3.69578956,2638.0,2637.9,0.00913055]
[1730246547700,0.7957,2637.9,2637.7,0.00913055]
[1730246550052,0.7957,2637.9,2637.3,0.00913055]
[1730246550255,3.69578956,2637.6,2637.3,0.00913055]
[1730246550409,3.69578956,2637.6,2637.1,0.00913055]
[1730246550604,0.7772,2637.5,2637.1,0.00913055]
[1730246550919,3.69578956,2637.2,2637.1,0.00913055]
[1730246556841,3.69578956,2637.2,2636.8,0.55913055]
[1730246557210,3.69578956,2636.9,2636.8,0.55913055]
[1730246558816,3.69578956,2636.9,2636.8,0.00913055]
[1730246561464,3.69578956,2637.2,2637.0,0.00913055]
[1730246562859,0.7772,2637.1,2636.9,0.00913055]
[1730246563854,0.7772,2637.1,2636.8,0.00913055]
[1730246564156,3.69578956,2636.9,2636.8,0.00913055]
[1730246564739,0.7772,2637.1,2636.8,0.00913055]
[1730246565068,3.69578956,2637.2,2636.8,0.00913055]
[1730246569543,3.69578956,2637.2,2636.9,0.816]
[1730246569747,3.69578956,2637.2,2637.0,0.55]
[1730246571872,3.69578956,2637.2,2636.8,0.00913055]
[1730246572084,3.69578956,2637.2,2636.8,0.55913055]
[1730246580899,3.69578956,2637.2,2637.0,0.55]
[1730246581199,3.69578956,2637.2,2636.8,0.55913055]
[1730246581373,3.69578956,2637.2,2636.8,0.84002446]
[1730246581766,0.8169,2637.1,2636.8,0.00913055]
[1730246581972,0.8169,2637.1,2636.8,0.55913055]
[1730246582281,0.8169,2637.1,2636.8,0.00913055]
[1730246585768,3.69578956,2636.9,2636.8,0.00913055]
[1730246585969,3.69578956,2636.9,2636.8,0.29110787]
[1730246586590,3.69578956,2636.9,2636.8,0.00913055]
[1730246586791,3.69578956,2636.9,2636.8,0.2911302]
[1730246586993,3.69578956,2637.2,2636.9,1.3593]
[1730246587201,3.69578956,2637.2,2637.0,0.28199965]
[1730246587417,3.69578956,2637.2,2636.9,1.3593]
[1730246587577,3.69578956,2637.2,2636.9,1.81053412]
[1730246588016,3.69578956,2637.2,2637.0,0.28199895]
[1730246588174,3.69578956,2637.5,2637.1,0.28199895]
[1730246588373,3.69578956,2637.5,2637.3,0.00913055]
[1730246595325,3.69578956,2637.2,2637.1,0.29177946]
[1730246597612,3.69578956,2637.2,2637.1,0.00913055]
[1730246597916,3.69578956,2637.2,2637.1,0.28279617]
[1730246601221,3.69578956,2637.2,2636.9,0.00913055]
[1730246601509,3.69578956,2637.2,2637.0,0.2827314]
[1730246601716,3.69578956,2637.2,2637.1,0.2827314]
[1730246602622,3.69578956,2637.2,2637.1,0.28274859]
[1730246605392,0.8169,2637.4,2637.0,0.45241392]
[1730246605593,3.69578956,2637.2,2637.1,0.28275532]
[1730246606626,1.65705851,2637.2,2637.1,0.28275532]
[1730246608711,1.65705851,2637.2,2636.9,0.00913055]
[1730246608890,1.65705851,2637.0,2636.9,0.55913055]
[1730246609121,1.65705851,2637.0,2636.9,1.29453402]
[1730246610800,0.80390012,2637.0,2636.9,1.29453402]
[1730246610999,0.8169,2637.4,2636.9,1.29453402]
[1730246611212,0.8077,2637.6,2637.2,0.00913055]
[1730246611543,0.59313742,2638.0,2637.8,0.00913055]
[1730246611693,1.65705851,2637.9,2637.8,0.00913055]
[1730246612495,3.70093545,2637.9,2637.8,0.29169006]
[1730246614347,3.70093545,2637.9,2637.8,0.00913055]
[1730246620311,4.50863545,2637.9,2637.8,0.00913055]
[1730246621325,8.2095709,2637.9,2637.5,0.28203245]
[1730246621501,0.45086355,2637.8,2637.6,0.00913055]
[1730246621697,4.151799,2637.8,2637.3,0.28203245]
[1730246622001,3.70093545,2637.4,2637.2,0.00913055]
[1730246622398,3.70093545,2637.4,2637.1,0.28212017]
[1730246622602,0.8077,2637.3,2637.0,0.00913055]
[1730246622832,3.70093545,2637.1,2637.0,0.00913055]
[1730246623008,3.70093545,2637.1,2636.8,0.29133138]
[1730246623216,3.70093545,2637.1,2636.8,0.29135064]
[1730246623426,3.70093545,2637.1,2636.8,0.00913055]
[1730246623613,3.70093545,2637.1,2636.8,0.57361633]
[1730246623938,3.70093545,2637.1,2636.8,0.57362075]
[1730246624240,3.70093545,2637.1,2636.8,0.29137215]
[1730246624905,3.70093545,2637.1,2636.8,0.55913055]
[1730246625443,0.7957,2638.2,2637.3,0.55913055]
[1730246625650,3.70093545,2637.9,2637.7,0.00913055]
[1730246627227,3.70093545,2637.9,2637.7,0.55913055]
[1730246627563,7.50047545,2638.9,2638.1,0.00913055]
[1730246627564,3.70093545,2638.2,2638.1,0.00913055]
[1730246630019,3.70093545,2638.2,2637.9,0.83196806]
[1730246630020,3.70093545,2639.0,2638.4,0.00913055]
[1730246630223,4.07985245,2639.0,2638.6,0.00913055]
[1730246631642,4.49663545,2638.7,2638.6,0.00913055]
[1730246632457,4.49663545,2638.7,2638.3,0.55]
[1730246632667,4.49663545,2638.7,2638.2,0.00913055]
[1730246633757,4.946299,2638.7,2638.2,0.00913055]
[1730246634053,4.946299,2638.7,2638.6,0.00913055]
[1730246634262,4.49663545,2638.7,2638.6,0.00913055]
[1730246634621,3.70093545,2638.7,2638.6,0.00913055]
[1730246640352,0.7665,2639.2,2638.8,0.00913055]
[1730246640554,3.70093545,2639.4,2639.0,0.00913055]
[1730246643038,3.70093545,2639.4,2639.1,0.7741]
[1730246643539,3.70093545,2639.4,2639.2,0.00913055]
[1730246645945,0.7665,2639.3,2639.2,0.00913055]
[1730246647676,3.70093545,2639.4,2639.2,0.00913055]
[1730246650273,4.5554,2639.3,2638.7,0.00913055]
[1730246650483,3.70093545,2638.9,2638.7,0.00913055]
[1730246651182,3.70093545,2638.9,2638.8,0.00913055]
[1730246651661,3.70093545,2639.1,2638.8,0.00913055]
[1730246653070,3.70093545,2638.9,2638.8,0.00913055]
[1730246653265,4.46743545,2638.9,2638.4,0.55913055]
[1730246653478,4.46743545,2638.9,2638.4,0.00913055]
[1730246654784,4.46743545,2638.9,2638.8,0.00913055]
[1730246656181,4.46743545,2638.9,2638.5,0.00913055]
[1730246659490,3.70093545,2638.6,2638.5,0.00913055]
[1730246659644,3.70093545,2638.6,2638.3,0.78323055]
[1730246659988,5.33777635,2638.9,2638.5,0.00913055]
[1730246660337,5.33777635,2638.9,2638.6,0.00913055]
[1730246660783,5.33777635,2638.9,2638.4,0.00913055]
[1730246661081,5.33777635,2638.9,2638.6,0.00913055]
[1730246661470,0.91271064,2638.8,2638.6,0.00913055]
[1730246662382,4.46743545,2638.9,2638.6,0.00913055]
[1730246668552,4.46743545,2638.9,2638.5,0.7741]
[1730246668753,4.46743545,2638.9,2638.3,0.78323055]
[1730246668968,4.46743545,2638.9,2638.6,0.00913055]
[1730246670572,4.46743545,2638.9,2638.3,0.7741]
[1730246670910,5.293097,2638.9,2638.3,0.7741]
[1730246671068,5.293097,2638.9,2638.6,0.00913055]
[1730246672495,4.46743545,2638.9,2638.6,0.00913055]
[1730246673652,3.70093545,2638.9,2638.6,0.00913055]
[1730246678522,1.65519506,2638.7,2638.6,0.00913055]
[1730246680376,2.45839506,2638.7,2638.4,0.00913055]
[1730246680718,1.65519506,2638.5,2638.1,0.82773055]
[1730246680955,1.65519506,2638.2,2638.1,0.82773055]
[1730246682203,1.65519506,2638.4,2638.1,1.10979381]
[1730246682381,1.65519506,2638.4,2638.1,0.82773055]
[1730246682577,3.69906043,2638.6,2638.1,0.82773055]
[1730246694098,3.69906043,2638.3,2638.2,0.28223225]
[1730246694299,3.69906043,2638.3,2638.1,0.82773055]
[1730246695941,3.69906043,2638.3,2638.1,0.00913055]
[1730246700272,5.32787604,2638.6,2638.1,0.00913055]
[1730246700570,3.69906043,2638.5,2638.1,0.00913055]
[1730246701076,8.77087208,2638.5,2638.1,0.00913055]
[1730246701245,3.79024,2638.4,2638.1,0.00913055]
[1730246701654,4.98075208,2638.5,2638.1,0.00913055]
[1730246702180,8.77086208,2638.5,2638.1,0.00913055]
[1730246702566,1.65587797,2638.2,2638.1,0.00913055]
[1730246703888,1.65587797,2638.2,2637.9,0.8305]
[1730246703889,5.44640797,2638.2,2637.9,0.00913055]
[1730246704039,1.65587797,2638.0,2637.8,0.45177051]
[1730246704244,1.65587797,2637.9,2637.6,0.46096262]
[1730246704442,1.65587797,2637.7,2637.6,0.46096262]
[1730246704744,1.65587797,2637.7,2637.6,0.74336769]
[1730246706278,1.65587797,2637.7,2637.6,0.73423714]
[1730246706466,2.14010217,2637.7,2637.6,0.45183207]
[1730246706958,5.93128217,2637.7,2637.6,0.45183207]
[1730246707367,2.14010217,2637.7,2637.6,0.45183207]
[1730246707568,1.65587797,2637.7,2637.6,0.45183207]
[1730246711505,1.65587797,2637.9,2637.7,0.7658]
[1730246712464,3.70037287,2638.1,2637.7,0.7658]
[1730246713601,3.70037287,2638.1,2637.6,0.00913055]
[1730246713602,4.54658,2638.0,2637.6,0.00913055]
[1730246713901,3.70037287,2637.8,2637.6,0.00913055]
[1730246714473,3.70037287,2637.8,2637.7,0.00913055]
[1730246719424,7.49141287,2637.8,2637.3,1.35483055]
[1730246719928,3.70037287,2637.8,2637.3,1.35483055]
[1730246721498,3.70037287,2637.5,2637.3,0.00913055]
[1730246722598,3.70037287,2637.5,2637.2,0.28200838]
[1730246722797,3.70037287,2637.5,2636.9,0.29113893]
[1730246722798,4.61001,2637.4,2636.9,0.29113893]
[1730246723032,4.61001,2637.4,2636.7,1.08683893]
[1730246723033,7.49228287,2637.2,2636.7,1.08683893]
[1730246723206,3.70037287,2637.0,2636.7,0.80483055]
[1730246723398,4.51877287,2637.0,2636.5,0.80483055]
[1730246723940,3.70037287,2636.8,2636.5,0.80483055]
[1730246725702,3.70037287,2636.6,2636.5,0.00913055]
[1730246727347,3.70037287,2637.0,2636.6,0.7957]
[1730246729152,3.70037287,2636.8,2636.6,0.7957]
[1730246731755,3.70037287,2637.0,2636.6,0.7957]
[1730246734323,4.53145416,2637.0,2636.6,0.7957]
[1730246735028,3.70037287,2636.7,2636.5,0.00913055]
[1730246737385,3.70037287,2636.7,2636.4,0.7843]
[1730246738170,3.70037287,2636.7,2636.4,0.79343055]
[1730246739973,4.14878016,2636.7,2636.4,0.00913055]
[1730246740173,3.70037287,2636.5,2636.2,0.79343055]
[1730246740342,3.70037287,2636.3,2636.2,0.00913055]
[1730246742674,3.70037287,2636.5,2636.2,0.00913055]
[1730246748873,7.90817089,2636.5,2636.0,0.79343055]
[1730246749186,3.70037287,2636.3,2635.8,0.7838]
[1730246749756,3.70037287,2636.3,2636.1,0.7838]
[1730246750551,3.70037287,2636.6,2636.1,0.7838]
[1730246752684,3.70037287,2636.6,2636.2,0.00913055]
[1730246755205,3.70037287,2636.6,2636.5,0.7838]
[1730246756515,1.65782024,2636.6,2636.5,0.7838]
[1730246758208,2.43362024,2636.6,2636.1,0.00913055]
[1730246758391,1.65782024,2636.2,2636.1,0.00913055]
[1730246758565,1.65782024,2636.2,2636.0,0.7838]
[1730246758766,1.65782024,2636.2,2636.1,0.00913055]
[1730246760595,3.70532506,2636.4,2636.1,0.00913055]
[1730246763580,7.49838506,2636.4,2636.1,0.00913055]
[1730246763779,0.7693,2636.2,2635.9,0.00913055]
[1730246763979,3.70532506,2636.1,2635.9,0.00913055]
[1730246764682,3.70532506,2636.1,2635.8,0.819]
[1730246764921,3.70532506,2636.1,2635.7,0.00913055]
[1730246766222,3.70532506,2635.9,2635.6,0.819]
[1730246767074,3.70532506,2635.9,2635.7,0.00913055]
[1730246769378,3.70532506,2635.9,2635.6,0.819]
[1730246770323,3.70532506,2635.9,2635.5,0.00913055]
[1730246770488,3.70532506,2635.7,2635.5,0.00913055]
[1730246770984,3.70532506,2635.9,2635.5,0.00913055]
[1730246771416,3.79348,2636.1,2635.4,0.819]
[1730246771417,3.70532506,2635.7,2635.4,0.819]
[1730246771586,3.70532506,2635.5,2635.4,0.819]
[1730246771921,3.70532506,2635.5,2635.2,0.819]
[1730246772123,3.70532506,2635.5,2635.3,0.00913055]
[1730246772281,3.70532506,2635.5,2635.1,0.00913055]
[1730246773195,3.70532506,2635.5,2635.1,0.55913055]
[1730246775894,0.7693,2635.4,2634.9,0.29236729]
[1730246776091,3.70532506,2635.0,2634.7,0.819]
[1730246776307,3.70532506,2634.8,2634.6,0.00913055]
[1730246778027,3.70532506,2634.8,2634.5,0.55]
[1730246778199,3.70532506,2634.8,2634.5,0.55913055]
[1730246778526,3.70532506,2634.8,2634.7,0.00913055]
[1730246783230,3.70532506,2634.8,2634.3,0.55]
[1730246783231,0.7693,2634.7,2634.3,0.55]
[1730246783438,3.70532506,2634.6,2634.5,0.00913055]
[1730246785052,3.70532506,2634.8,2634.5,0.00913055]
[1730246785849,3.70532506,2634.8,2634.7,0.00913055]
[1730246786036,0.7693,2635.0,2634.7,0.00913055]
[1730246786233,3.70532506,2634.9,2634.7,0.00913055]
[1730246788133,3.70532506,2634.9,2634.5,0.00913055]
[1730246788354,3.70532506,2634.9,2634.7,0.00913055]
[1730246791362,3.70532506,2634.9,2634.5,0.00913055]
[1730246791533,4.53228057,2634.9,2634.5,0.00913055]
[1730246791855,3.70532506,2634.6,2634.3,0.55913055]
[1730246792647,3.70532506,2634.6,2634.5,0.00913055]
[1730246793871,3.70532506,2634.6,2634.3,0.55913055]
[1730246794729,4.49912506,2634.6,2634.1,0.00913055]
[1730246794934,3.70532506,2634.4,2634.1,0.00913055]
[1730246798697,3.70532506,2634.2,2634.1,0.00913055]
[1730246799054,4.49912506,2634.2,2634.1,0.00913055]
[1730246799304,3.70532506,2634.6,2634.1,0.79453055]
[1730246800757,3.70532506,2634.6,2633.4,3.28247233]
[1730246800758,3.70532506,2634.9,2634.4,0.7854]
[1730246800977,3.70532506,2634.9,2634.5,0.55]
[1730246801388,3.70532506,2634.9,2634.5,0.55913055]
[1730246803503,3.70532506,2634.7,2634.4,0.00913055]
[1730246803659,3.70532506,2634.5,2634.4,0.00913055]
[1730246804261,4.07585757,2634.5,2634.4,0.00913055]
[1730246804462,0.37053251,2634.5,2634.4,0.00913055]
[1730246804705,3.70532506,2634.6,2634.4,0.00913055]
[1730246805271,0.8114,2635.3,2634.6,0.00913055]
[1730246805477,3.70532506,2635.1,2634.6,0.55913055]
[1730246809409,3.70532506,2634.8,2634.6,0.55913055]
[1730246813208,3.70532506,2634.8,2634.6,0.00913055]
[1730246814101,3.70532506,2634.8,2634.5,0.7873]
[1730246814276,3.70532506,2634.8,2634.6,0.00913055]
[1730246815275,3.70532506,2634.8,2634.4,0.55913055]
[1730246815520,4.15699757,2634.8,2634.4,0.00913055]
[1730246815677,4.15699757,2634.8,2634.6,0.00913055]
[1730246819621,4.15699757,2634.8,2634.4,0.00913055]
[1730246819778,4.15699757,2634.8,2634.5,0.28400094]
[1730246819985,4.15699757,2634.8,2634.4,0.00913055]
[1730246820190,4.15699757,2634.8,2634.5,0.28400264]
[1730246820418,0.49683976,2634.7,2634.2,0.55913055]
[1730246820730,1.66066432,2634.3,2634.2,0.55913055]
[1730246820887,0.80658379,2634.3,2634.2,1.29780678]
[1730246821424,0.80658379,2634.3,2634.2,0.55913055]
[1730246821787,0.80658379,2634.3,2634.2,1.29806631]
[1730246822510,3.71032388,2634.6,2634.2,1.29806631]
[1730246822712,4.08135627,2634.6,2634.3,0.28420606]
[1730246822892,3.71032388,2634.4,2634.2,0.00913055]
[1730246825491,3.71032388,2634.4,2634.1,0.00913055]
[1730246825492,0.7624,2634.3,2634.1,0.00913055]
[1730246825688,3.71032388,2634.2,2633.8,0.00913055]
[1730246825924,3.71032388,2633.9,2633.7,0.45465433]
[1730246826124,3.71032388,2633.9,2633.5,0.8278]
[1730246826125,3.71032388,2634.1,2633.8,0.29328865]
[1730246826337,3.71032388,2634.1,2633.8,0.00913055]
[1730246826994,3.71032388,2633.9,2633.5,0.83693055]
[1730246827199,3.71032388,2633.9,2633.6,1.28863666]
[1730246827387,3.71032388,2633.9,2633.7,0.28409102]
[1730246827615,3.71032388,2633.9,2633.6,0.55]
[1730246827863,3.71032388,2633.9,2633.8,0.00913055]
[1730246828222,3.71032388,2633.9,2633.6,0.55913055]
[1730246829225,3.71032388,2633.7,2633.6,0.55]
[1730246830319,3.71032388,2633.7,2633.6,0.00913055]
[1730246834525,4.47272388,2634.3,2633.6,0.55913055]
[1730246834834,3.71032388,2634.3,2633.8,0.00913055]
[1730246835247,3.71032388,2634.3,2633.9,0.8278]
[1730246835636,3.71032388,2634.1,2633.9,0.8278]
[1730246835840,3.71032388,2634.1,2633.8,0.00913055]
[1730246837335,4.47272388,2634.1,2633.8,0.00913055]
[1730246837532,4.47272388,2634.1,2633.7,0.8278]
[1730246837768,4.47272388,2634.1,2633.8,0.00913055]
[1730246837967,4.91999627,2634.1,2633.8,0.00913055]
[1730246838175,4.91999627,2634.1,2633.6,0.00913055]
[1730246838359,3.71032388,2633.9,2633.6,0.00913055]
[1730246839559,4.47272388,2634.1,2633.6,0.00913055]
[1730246842466,3.71032388,2633.9,2633.6,0.00913055]
[1730246847045,0.7624,2634.1,2633.6,0.00913055]
[1730246848494,1.66117343,2634.0,2633.6,0.00913055]
[1730246851687,0.7624,2634.1,2633.6,0.00913055]
[1730246854497,1.38436534,2634.1,2633.6,0.00913055]
[1730246855189,1.66117343,2634.0,2633.6,0.00913055]
[1730246860087,1.38436534,2634.1,2633.6,0.00913055]
[1730246860564,4.94379239,2634.6,2633.8,0.00913055]
[1730246860900,0.7771,2635.0,2634.4,0.00913055]
[1730246861086,0.59378016,2635.1,2634.7,0.7834]
[1730246861617,0.7771,2635.4,2634.7,0.7834]
[1730246861759,2.43827343,2635.4,2634.8,0.00913055]
[1730246862574,0.7771,2635.6,2634.8,0.00913055]
[1730246862791,0.7771,2635.6,2634.9,0.7834]
[1730246862973,0.7771,2635.6,2635.0,0.00913055]
[1730246863302,5.07854774,2635.9,2635.0,0.00913055]
[1730246863506,0.88721877,2635.8,2635.0,0.00913055]
[1730246863705,0.88721877,2635.8,2635.0,0.29262771]
[1730246863906,0.88721877,2635.8,2635.3,0.7834]
[1730246869401,8.87244774,2635.9,2635.3,0.7834]
[1730246869979,5.07854774,2635.9,2635.3,0.7834]
[1730246870173,0.5936997,2635.9,2635.3,0.7834]
[1730246870412,0.5936997,2635.9,2635.6,0.752]
[1730246870714,4.54673,2636.2,2635.6,0.752]
[1730246871218,3.70774804,2636.3,2635.6,0.752]
[1730246871378,4.53417984,2636.3,2635.6,0.752]
[1730246871581,3.79342,2636.2,2635.6,0.752]
[1730246871775,7.58685,2636.2,2635.6,0.752]
[1730246872413,8.25483804,2636.0,2635.5,0.00913055]
[1730246872620,4.6192538,2635.9,2635.5,0.00913055]
[1730246872790,0.7534,2635.6,2635.1,0.752]
[1730246873713,4.5476,2635.6,2635.1,0.752]
[1730246876090,8.34188,2635.6,2635.1,0.752]
[1730246876345,1.2049628,2635.5,2635.1,0.752]
[1730246877818,4.9993328,2635.5,2634.9,0.752]
[1730246878119,1.2049628,2635.5,2635.0,0.00913055]
[1730246879682,4.91271084,2635.5,2635.0,0.00913055]
[1730246880077,0.7534,2635.6,2635.0,0.00913055]
[1730246881418,3.70774804,2635.4,2634.9,0.76113055]
[1730246882317,7.50224804,2635.4,2634.9,0.76113055]
[1730246882495,3.70774804,2635.4,2634.9,0.76113055]
[1730246882697,4.91272384,2635.4,2634.9,0.76113055]
[1730246883087,4.91272384,2635.4,2634.9,0.752]
[1730246887523,8.70721384,2635.4,2634.9,0.752]
[1730246889332,4.91272384,2635.4,2634.9,0.752]
[1730246889688,8.70722384,2635.4,2634.9,0.752]
[1730246890618,1.65969093,2635.2,2634.9,0.752]
[1730246891238,3.0,2635.7,2634.9,0.76113055]
[1730246891439,4.55683,2636.5,2635.5,0.00913055]
[1730246891607,4.55683,2636.5,2635.6,0.7837]
[1730246891608,1.65969093,2636.2,2635.6,0.7837]
[1730246892515,8.70095264,2636.5,2635.6,0.7837]
[1730246892918,3.0,2636.4,2635.6,0.7837]
[1730246893125,4.60873196,2636.4,2635.6,0.7837]
[1730246894127,8.40186196,2636.4,2635.6,0.7837]
[1730246894923,3.79322,2636.3,2635.6,0.7837]
[1730246896040,4.46940394,2636.2,2635.6,0.7837]
[1730246896238,3.70550394,2636.0,2635.6,0.7837]
[1730246897538,3.79379,2635.9,2635.6,0.79283055]
[1730246897736,3.79379,2635.9,2635.6,0.00913055]
[1730246900245,3.70550394,2636.0,2635.6,0.00913055]
[1730246903662,3.70550394,2636.0,2635.7,0.7837]
[1730246904040,0.44694039,2636.1,2635.7,0.7837]
[1730246907593,0.41524443,2636.0,2635.7,0.7837]
[1730246913047,3.70550394,2635.9,2635.3,0.7683]
[1730246913253,7.49985394,2635.5,2635.3,0.7683]